fUSD/lending_fUSD_20240215
["ID","MTS","AMOUNT","RATE_DAILY","PERIOD"]
[314119810,1707999048423,-500.0,0.00039452,7]
[314119811,1707999048434,-500.0,0.00039452,7]
[314119812,1707999048443,-500.0,0.00039452,7]
[314119813,1707999048452,-500.0,0.00039452,7]
[314119814,1707999048462,-500.0,0.00039452,7]
[314119815,1707999048473,-500.0,0.00039452,7]
[314119816,1707999048482,-500.0,0.00039452,7]
[314119817,1707999048492,-500.0,0.00039452,7]
[314119818,1707999048501,-270.4539905,0.00039452,7]
[314119819,1707999048512,-500.0,0.00039452,7]
[314119820,1707999048521,-500.0,0.00039452,7]
[314119821,1707999048533,-226.31109976,0.00039452,7]
[314119822,1707999048543,-564.46665161,0.00039452,7]
[314119823,1707999048554,-588.83707308,0.00039452,7]
[314119824,1707999048564,-500.0,0.00039452,7]
[314119825,1707999048575,-500.0,0.00039452,7]
[314119826,1707999048586,-500.0,0.00039452,7]
[314119827,1707999048597,-500.0,0.00039452,7]
[314119828,1707999048607,-510.4753807,0.00039452,7]
[314119829,1707999048617,-513.15272168,0.00039452,7]
[314119830,1707999048628,-500.0,0.00039452,7]
[314119831,1707999048637,-500.0,0.00039452,7]
[314119832,1707999048646,-500.0,0.00039452,7]
[314119833,1707999048657,-500.0,0.00039452,7]
[314119834,1707999048668,-496.91843664,0.00039452,7]
[314119835,1707999048678,-500.0,0.00039452,7]
[314119836,1707999048688,-500.0,0.00039452,7]
[314119837,1707999048698,-500.0,0.00039452,7]
[314119838,1707999048708,-500.0,0.00039452,7]
[314119839,1707999048717,-511.94586453,0.00039452,7]
[314119840,1707999048727,-596.13254473,0.00039452,7]
[314119841,1707999048736,-500.0,0.00039452,7]
[314119842,1707999048745,-500.0,0.00039452,7]
[314119843,1707999048754,-500.0,0.00039452,7]
[314119844,1707999048764,-500.0,0.00039452,7]
[314119845,1707999048773,-500.0,0.00039452,7]
[314119846,1707999048782,-522.44142082,0.00039452,7]
[314119847,1707999048791,-3358.08296838,0.00039452,30]
[314119848,1707999048801,-500.0,0.00039452,7]
[314119849,1707999048810,-500.0,0.00039452,7]
[314119850,1707999048820,-500.0,0.00039452,7]
[314119851,1707999048829,-509.59200334,0.00039452,7]
[314119852,1707999048838,-295.07208168,0.00039452,7]
[314119853,1707999048847,-500.0,0.00039452,7]
[314119854,1707999048857,-500.0,0.00039452,7]
[314119855,1707999048866,-500.0,0.00039452,2]
[314119856,1707999048875,-510.24692225,0.00039452,7]
[314119857,1707999048885,-500.0,0.00039452,7]
[314119858,1707999048894,-500.0,0.00039452,7]
[314119859,1707999048903,-500.0,0.00039452,7]
[314119860,1707999048912,-500.0,0.00039452,7]
[314119861,1707999048921,-481.65017347,0.00039452,7]
[314119862,1707999048930,-500.0,0.00039452,7]
[314119863,1707999048940,-517.26082949,0.00039452,7]
[314119864,1707999048950,-513.72664681,0.00039452,7]
[314119865,1707999048960,-541.25,0.00039452,7]
[314119866,1707999048970,-500.0,0.00039452,7]
[314119867,1707999048980,-515.27477593,0.00039452,7]
[314119868,1707999048990,-500.0,0.00039452,7]
[314119869,1707999049000,-500.0,0.00039452,7]
[314119870,1707999049009,-500.0,0.00039452,7]
[314119871,1707999049020,-500.0,0.00039452,7]
[314119872,1707999049030,-520.23213209,0.00039452,7]
[314119873,1707999049039,-500.0,0.00039452,7]
[314119874,1707999049048,-526.90916506,0.00039452,7]
[314119875,1707999049058,-512.0986752,0.00039452,7]
[314119876,1707999049067,-500.0,0.00039452,7]
[314119877,1707999049076,-500.0,0.00039452,7]
[314119878,1707999049085,-500.0,0.00039452,7]
[314119879,1707999049094,-539.89645641,0.00039452,7]
[314119880,1707999049103,-500.0,0.00039452,7]
[314119881,1707999049112,-509.92911311,0.00039452,7]
[314119882,1707999049122,-486.47883203,0.00039452,7]
[314119883,1707999049131,-500.0,0.00039452,7]
[314119884,1707999049139,-500.0,0.00039452,7]
[314119885,1707999049149,-500.0,0.00039452,7]
[314119886,1707999049158,-500.0,0.00039452,7]
[314119887,1707999049167,-244.4829717,0.00039452,7]
[314119888,1707999049176,-500.0,0.00039452,7]
[314119889,1707999049185,-546.66548949,0.00039452,7]
[314119890,1707999049194,-500.0,0.00039452,7]
[314119891,1707999049203,-500.0,0.00039452,7]
[314119892,1707999049213,-500.0,0.00039452,7]
[314119893,1707999049222,-474.17657206,0.00039452,7]
[314119894,1707999049231,-500.0,0.00039452,7]
[314119895,1707999049240,-500.0,0.00039452,7]
[314119896,1707999049249,-504.35150619,0.00039452,7]
[314119897,1707999049258,-500.0,0.00039452,7]
[314119898,1707999049267,-500.0,0.00039452,7]
[314119899,1707999049276,-500.0,0.00039452,7]
[314119900,1707999049285,-500.0,0.00039452,7]
[314119901,1707999049294,-537.9494555,0.00039452,7]
[314119902,1707999049304,-500.0,0.00039452,7]
[314119903,1707999049313,-500.0,0.00039452,7]
[314119904,1707999049402,-517.02994212,0.00039452,7]
[314119905,1707999049411,-500.0,0.00039452,7]
[314119906,1707999049420,-500.0,0.00039452,7]
[314119907,1707999049429,-500.0,0.00039452,7]
[314119908,1707999049442,-500.0,0.00039452,7]
[314119909,1707999049451,-549.84684217,0.00039452,7]
[314119910,1707999049460,-505.4502826,0.00039452,7]
[314119911,1707999049470,-508.7666724,0.00039452,7]
[314119912,1707999049479,-500.0,0.00039452,7]
[314119913,1707999049489,-500.0,0.00039452,7]
[314119914,1707999049498,-524.86113636,0.00039452,7]
[314119915,1707999049507,-500.0,0.00039452,7]
[314119916,1707999049517,-500.0,0.00039452,7]
[314119917,1707999049526,-558.68371816,0.00039452,7]
[314119918,1707999049535,-500.0,0.00039452,7]
[314119919,1707999049544,-511.62156044,0.00039452,7]
[314119920,1707999049554,-500.0,0.00039452,7]
[314119921,1707999049563,-500.0,0.00039452,7]
[314119922,1707999049572,-310.30188606,0.00039452,7]
[314119923,1707999049580,-524.35253935,0.00039452,7]
[314119924,1707999049589,-500.0,0.00039452,7]
[314119925,1707999049598,-526.41607718,0.00039452,7]
[314119926,1707999049609,-500.0,0.00039452,7]
[314119927,1707999049618,-449.70395486,0.00039452,7]
[314119928,1707999049628,-508.99952911,0.00039452,7]
[314119929,1707999049637,-519.24028704,0.00039452,7]
[314119930,1707999049646,-578.66465498,0.00039452,7]
[314119931,1707999049655,-500.0,0.00039452,7]
[314119932,1707999049664,-508.79351576,0.00039452,7]
[314119933,1707999049674,-514.35349478,0.00039452,7]
[314119934,1707999049683,-500.0,0.00039452,7]
[314119935,1707999049692,-500.0,0.00039452,7]
[314119936,1707999049701,-500.0,0.00039452,7]
[314119937,1707999049710,-500.0,0.00039452,7]
[314119938,1707999049720,-500.0,0.00039452,7]
[314119939,1707999049729,-500.0,0.00039452,7]
[314119940,1707999049738,-500.0,0.00039452,7]
[314119941,1707999049747,-500.0,0.00039452,7]
[314119942,1707999049756,-500.0,0.00039452,7]
[314119943,1707999049765,-500.0,0.00039452,7]
[314119944,1707999049775,-500.0,0.00039452,7]
[314119945,1707999049784,-500.0,0.00039452,7]
[314119946,1707999049793,-551.5937854,0.00039452,7]
[314119947,1707999049802,-565.45,0.00039452,7]
[314119948,1707999049812,-500.0,0.00039452,7]
[314119949,1707999049821,-500.0,0.00039452,7]
[314119950,1707999049830,-500.0,0.00039452,7]
[314119951,1707999049839,-286.36238261,0.00039452,7]
[314119952,1707999049848,-500.0,0.00039452,7]
[314119953,1707999049857,-500.0,0.00039452,7]
[314119954,1707999049866,-542.95757459,0.00039452,7]
[314119955,1707999049878,-1047.53,0.00039452,7]
[314119956,1707999049887,-500.0,0.00039452,7]
[314119957,1707999049896,-500.0,0.00039452,7]
[314119958,1707999049905,-500.0,0.00039452,7]
[314119959,1707999049914,-654.54,0.00039452,7]
[314119960,1707999049923,-500.0,0.00039452,7]
[314119961,1707999049932,-500.0,0.00039452,7]
[314119962,1707999049941,-500.0,0.00039452,7]
[314119963,1707999049951,-500.0,0.00039452,7]
[314119964,1707999049959,-500.0,0.00039452,7]
[314119965,1707999049968,-500.0,0.00039452,7]
[314119966,1707999049978,-527.03,0.00039452,7]
[314119967,1707999049986,-500.0,0.00039452,7]
[314119968,1707999049995,-500.0,0.00039452,7]
[314119969,1707999050005,-500.0,0.00039452,7]
[314119970,1707999050014,-500.0,0.00039452,7]
[314119971,1707999050023,-500.0,0.00039452,7]
[314119972,1707999050032,-500.0,0.00039452,7]
[314119973,1707999050041,-500.0,0.00039452,7]
[314119974,1707999050051,-500.0,0.00039452,7]
[314119975,1707999050060,-500.0,0.00039452,7]
[314119976,1707999050070,-507.88071825,0.00039452,7]
[314119977,1707999050079,-500.0,0.00039452,7]
[314119978,1707999050089,-500.0,0.00039452,7]
[314119979,1707999050098,-500.0,0.00039452,7]
[314119980,1707999050108,-533.983118,0.00039452,7]
[314119981,1707999050117,-500.0,0.00039452,7]
[314119982,1707999050128,-500.0,0.00039452,7]
[314119983,1707999050138,-1816.64,0.00039452,7]
[314119984,1707999050147,-500.0,0.00039452,7]
[314119985,1707999050157,-500.0,0.00039452,7]
[314119986,1707999050166,-500.0,0.00039452,7]
[314119987,1707999050176,-500.0,0.00039452,7]
[314119988,1707999050185,-500.0,0.00039452,7]
[314119989,1707999050195,-500.0,0.00039452,7]
[314119990,1707999050204,-250.0,0.00039452,7]
[314119991,1707999050213,-500.0,0.00039452,7]
[314119992,1707999050223,-841.89,0.00039452,7]
[314119993,1707999050233,-1269.83,0.00039452,7]
[314119994,1707999050243,-500.0,0.00039452,7]
[314119995,1707999050252,-2625.56,0.00039452,7]
[314119996,1707999050262,-500.0,0.00039452,7]
[314119997,1707999050272,-500.0,0.00039452,7]
[314119998,1707999050282,-500.0,0.00039452,7]
[314119999,1707999050291,-216.47896926,0.00039452,7]
[314120000,1707999050301,-500.0,0.00039452,7]
[314120001,1707999050310,-500.0,0.00039452,7]
[314120002,1707999050319,-500.0,0.00039452,7]
[314120003,1707999050328,-518.98371549,0.00039452,7]
[314120004,1707999050338,-500.0,0.00039452,7]
[314120005,1707999050347,-500.0,0.00039452,7]
[314120006,1707999050356,-518.95348025,0.00039452,7]
[314120007,1707999050366,-515.80534666,0.00039452,7]
[314120008,1707999050377,-500.0,0.00039452,7]
[314120009,1707999050386,-1066.86,0.00039452,7]
[314120010,1707999050395,-500.0,0.00039452,7]
[314120011,1707999050405,-500.0,0.00039452,7]
[314120012,1707999050414,-506.14005328,0.00039452,7]
[314120013,1707999050426,-500.0,0.00039452,7]
[314120014,1707999050436,-500.0,0.00039452,7]
[314120015,1707999050444,-500.0,0.00039452,7]
[314120016,1707999050453,-913.07,0.00039452,7]
[314120017,1707999050463,-500.0,0.00039452,7]
[314120018,1707999050473,-508.23824411,0.00039452,7]
[314120019,1707999050482,-500.0,0.00039452,7]
[314120020,1707999050491,-500.0,0.00039452,7]
[314120021,1707999050500,-500.0,0.00039452,7]
[314120022,1707999050510,-500.0,0.00039452,7]
[314120023,1707999050519,-500.0,0.00039452,7]
[314120024,1707999050528,-6014.55484937,0.00039452,7]
[314120025,1707999050857,-39670.93515063,0.00039452,7]
[314120026,1707999050867,-500.0,0.00039452,7]
[314120027,1707999050880,-500.0,0.00039452,7]
[314120028,1707999050889,-500.0,0.00039452,7]
[314120029,1707999050900,-511.94,0.00039452,7]
[314120030,1707999050910,-500.0,0.00039452,7]
[314120031,1707999050921,-500.0,0.00039452,7]
[314120032,1707999050931,-500.0,0.00039452,7]
[314120033,1707999050941,-696.23,0.00039452,7]
[314120034,1707999050953,-1559.64,0.00039452,7]
[314120035,1707999050964,-1928.86,0.00039452,7]
[314120036,1707999050974,-388.92047623,0.00039452,7]
[314120037,1707999050984,-500.0,0.00039452,7]
[314120038,1707999050995,-500.0,0.00039452,7]
[314120039,1707999051005,-500.0,0.00039452,7]
[314120040,1707999051016,-500.0,0.00039452,7]
[314120041,1707999051026,-538.94249897,0.00039452,7]
[314120042,1707999051036,-500.0,0.00039452,7]
[314120043,1707999051047,-802.11,0.00039452,7]
[314120044,1707999051058,-500.0,0.00039452,7]
[314120045,1707999051070,-500.0,0.00039452,7]
[314120046,1707999051081,-554.45499327,0.00039452,7]
[314120047,1707999051092,-500.0,0.00039452,7]
[314120048,1707999051102,-808.03,0.00039452,7]
[314120049,1707999051113,-500.0,0.00039452,7]
[314120050,1707999051125,-500.0,0.00039452,7]
[314120051,1707999051136,-500.0,0.00039452,7]
[314120052,1707999051146,-1753.65,0.00039452,7]
[314120053,1707999051156,-500.0,0.00039452,7]
[314120054,1707999051167,-530.57866567,0.00039452,7]
[314120055,1707999051177,-500.0,0.00039452,7]
[314120056,1707999051189,-500.0,0.00039452,7]
[314120057,1707999051200,-500.0,0.00039452,7]
[314120058,1707999051210,-500.0,0.00039452,7]
[314120059,1707999051219,-509.21958738,0.00039452,7]
[314120060,1707999051229,-525.42,0.00039452,7]
[314120061,1707999051238,-518.51315706,0.00039452,7]
[314120062,1707999051248,-500.0,0.00039452,7]
[314120063,1707999051257,-509.28967933,0.00039452,7]
[314120064,1707999051267,-500.0,0.00039452,7]
[314120065,1707999051278,-2057.13,0.00039452,7]
[314120066,1707999051287,-500.0,0.00039452,7]
[314120067,1707999051296,-509.52539758,0.00039452,7]
[314120068,1707999051307,-533.79886002,0.00039452,7]
[314120069,1707999051317,-510.79275836,0.00039452,7]
[314120070,1707999051326,-500.0,0.00039452,7]
[314120071,1707999051335,-500.0,0.00039452,7]
[314120072,1707999051344,-540.24086002,0.00039452,7]
[314120073,1707999051354,-500.0,0.00039452,7]
[314120074,1707999051363,-500.0,0.00039452,7]
[314120075,1707999051375,-500.0,0.00039452,7]
[314120076,1707999051385,-500.0,0.00039452,7]
[314120077,1707999051395,-500.0,0.00039452,7]
[314120078,1707999051404,-554.22230291,0.00039452,7]
[314120079,1707999051414,-531.41171715,0.00039452,7]
[314120080,1707999051426,-500.0,0.00039452,7]
[314120081,1707999051436,-2339.49,0.00039452,7]
[314120082,1707999051446,-500.0,0.00039452,7]
[314120083,1707999051456,-527.27684306,0.00039452,7]
[314120084,1707999051464,-1863.08,0.00039452,7]
[314120085,1707999051476,-197.36579644,0.00039452,7]
[314120086,1707999051485,-500.0,0.00039452,7]
[314120087,1707999051495,-509.82188529,0.00039452,7]
[314120088,1707999051504,-534.20158857,0.00039452,7]
[314120089,1707999051515,-500.0,0.00039452,7]
[314120090,1707999051525,-500.0,0.00039452,7]
[314120091,1707999051534,-500.0,0.00039452,7]
[314120092,1707999051544,-500.0,0.00039452,7]
[314120093,1707999051553,-500.0,0.00039452,7]
[314120094,1707999051562,-500.0,0.00039452,7]
[314120095,1707999051572,-575.03,0.00039452,7]
[314120096,1707999051582,-1160.17,0.00039452,7]
[314120097,1707999051591,-500.0,0.00039452,7]
[314120098,1707999051601,-500.0,0.00039452,7]
[314120099,1707999051611,-725.96,0.00039452,7]
[314120100,1707999051622,-500.0,0.00039452,7]
[314120101,1707999051632,-500.0,0.00039452,7]
[314120102,1707999051641,-500.0,0.00039452,7]
[314120103,1707999051651,-500.0,0.00039452,7]
[314120104,1707999051660,-500.0,0.00039452,7]
[314120105,1707999051669,-500.0,0.00039452,7]
[314120106,1707999051678,-500.0,0.00039452,7]
[314120107,1707999051689,-500.0,0.00039452,7]
[314120108,1707999051699,-500.0,0.00039452,7]
[314120109,1707999051708,-500.0,0.00039452,7]
[314120110,1707999051718,-500.0,0.00039452,7]
[314120111,1707999051727,-1087.27,0.00039452,7]
[314120112,1707999051737,-500.0,0.00039452,7]
[314120113,1707999051747,-574.70983922,0.00039452,7]
[314120114,1707999051756,-500.0,0.00039452,7]
[314120115,1707999051765,-500.0,0.00039452,7]
[314120116,1707999051775,-270.45073933,0.00039452,7]
[314120117,1707999051784,-500.0,0.00039452,7]
[314120118,1707999051793,-500.0,0.00039452,7]
[314120119,1707999051802,-500.0,0.00039452,7]
[314120120,1707999051812,-500.0,0.00039452,7]
[314120121,1707999051821,-500.0,0.00039452,7]
[314120122,1707999051830,-500.0,0.00039452,7]
[314120123,1707999051838,-500.0,0.00039452,7]
[314120124,1707999051848,-504.64361516,0.00039452,7]
[314120125,1707999051856,-500.0,0.00039452,7]
[314120126,1707999051865,-1732.36,0.00039452,7]
[314120127,1707999051876,-500.0,0.00039452,7]
[314120128,1707999051885,-500.0,0.00039452,7]
[314120129,1707999051894,-500.0,0.00039452,7]
[314120130,1707999051903,-521.36,0.00039452,7]
[314120131,1707999051993,-1635.74,0.00039452,7]
[314120132,1707999052002,-500.0,0.00039452,7]
[314120133,1707999052011,-567.74,0.00039452,7]
[314120134,1707999052021,-500.0,0.00039452,7]
[314120135,1707999052030,-500.0,0.00039452,7]
[314120136,1707999052039,-500.0,0.00039452,7]
[314120137,1707999052049,-500.0,0.00039452,7]
[314120138,1707999052058,-500.0,0.00039452,7]
[314120139,1707999052068,-500.0,0.00039452,7]
[314120140,1707999052077,-768.14,0.00039452,7]
[314120141,1707999052087,-500.0,0.00039452,7]
[314120142,1707999052097,-500.0,0.00039452,7]
[314120143,1707999052106,-498.001,0.00039452,7]
[314120144,1707999052115,-500.0,0.00039452,7]
[314120145,1707999052126,-500.0,0.00039452,7]
[314120146,1707999052135,-500.0,0.00039452,7]
[314120147,1707999052145,-500.0,0.00039452,7]
[314120148,1707999052154,-500.0,0.00039452,7]
[314120149,1707999052163,-500.0,0.00039452,7]
[314120150,1707999052173,-500.0,0.00039452,7]
[314120151,1707999052182,-1380.21,0.00039452,7]
[314120152,1707999052191,-511.86,0.00039452,7]
[314120153,1707999052200,-500.0,0.00039452,7]
[314120154,1707999052209,-500.0,0.00039452,7]
[314120155,1707999052218,-500.0,0.00039452,7]
[314120156,1707999052227,-500.0,0.00039452,7]
[314120157,1707999052236,-500.0,0.00039452,7]
[314120158,1707999052245,-500.0,0.00039452,7]
[314120159,1707999052255,-500.0,0.00039452,7]
[314120160,1707999052264,-500.0,0.00039452,7]
[314120161,1707999052273,-500.0,0.00039452,7]
[314120162,1707999052283,-500.0,0.00039452,7]
[314120163,1707999052292,-500.0,0.00039452,7]
[314120164,1707999052302,-500.0,0.00039452,7]
[314120165,1707999052311,-500.0,0.00039452,7]
[314120166,1707999052320,-500.0,0.00039452,7]
[314120167,1707999052329,-500.0,0.00039452,7]
[314120168,1707999052339,-500.0,0.00039452,7]
[314120169,1707999052347,-500.0,0.00039452,7]
[314120170,1707999052356,-500.0,0.00039452,7]
[314120171,1707999052365,-500.0,0.00039452,7]
[314120172,1707999052377,-500.0,0.00039452,7]
[314120173,1707999052386,-500.0,0.00039452,7]
[314120174,1707999052395,-500.0,0.00039452,7]
[314120175,1707999052404,-500.0,0.00039452,7]
[314120176,1707999052413,-500.0,0.00039452,7]
[314120177,1707999052424,-500.0,0.00039452,7]
[314120178,1707999052433,-500.0,0.00039452,7]
[314120179,1707999052444,-500.0,0.00039452,7]
[314120180,1707999052453,-178.95068036,0.00039452,7]
[314120181,1707999052462,-1719.13,0.00039452,7]
[314120182,1707999052473,-500.0,0.00039452,7]
[314120183,1707999052482,-500.0,0.00039452,7]
[314120184,1707999052491,-500.0,0.00039452,7]
[314120185,1707999052501,-500.0,0.00039452,7]
[314120186,1707999052510,-500.0,0.00039452,7]
[314120187,1707999052519,-500.0,0.00039452,7]
[314120188,1707999052529,-500.0,0.00039452,7]
[314120189,1707999052538,-550.33874667,0.00039452,7]
[314120190,1707999052547,-545.65699778,0.00039452,7]
[314120191,1707999052555,-500.0,0.00039452,7]
[314120192,1707999052565,-500.0,0.00039452,7]
[314120193,1707999052574,-500.0,0.00039452,7]
[314120194,1707999052583,-500.0,0.00039452,7]
[314120195,1707999052592,-506.24009431,0.00039452,7]
[314120196,1707999052601,-500.0,0.00039452,7]
[314120197,1707999052610,-500.0,0.00039452,7]
[314120198,1707999052620,-648.31,0.00039452,7]
[314120199,1707999052630,-500.0,0.00039452,7]
[314120200,1707999052639,-500.0,0.00039452,7]
[314120201,1707999052648,-500.0,0.00039452,7]
[314120202,1707999052657,-500.0,0.00039452,7]
[314120203,1707999052667,-577.38135072,0.00039452,7]
[314120204,1707999052676,-1048.73,0.00039452,7]
[314120205,1707999052684,-500.0,0.00039452,7]
[314120206,1707999052693,-500.0,0.00039452,7]
[314120207,1707999052702,-513.92416439,0.00039452,7]
[314120208,1707999052711,-500.0,0.00039452,7]
[314120209,1707999052720,-500.0,0.00039452,7]
[314120210,1707999052729,-500.0,0.00039452,7]
[314120211,1707999052738,-500.0,0.00039452,7]
[314120212,1707999052747,-544.6820342,0.00039452,7]
[314120213,1707999052755,-609.02,0.00039452,7]
[314120214,1707999052765,-596.65,0.00039452,7]
[314120215,1707999052774,-4490.34,0.00039452,7]
[314120216,1707999052783,-500.0,0.00039452,7]
[314120217,1707999052791,-604.8605,0.00039452,7]
[314120218,1707999052802,-500.0,0.00039452,7]
[314120219,1707999052811,-500.0,0.00039452,7]
[314120220,1707999052820,-500.0,0.00039452,7]
[314120221,1707999052829,-500.0,0.00039452,7]
[314120222,1707999052838,-557.50893271,0.00039452,7]
[314120223,1707999052848,-500.0,0.00039452,7]
[314120224,1707999052857,-500.0,0.00039452,7]
[314120225,1707999052866,-1417.38,0.00039452,7]
[314120226,1707999052876,-500.0,0.00039452,7]
[314120227,1707999052885,-500.0,0.00039452,7]
[314120228,1707999052894,-500.0,0.00039452,7]
[314120229,1707999052903,-500.0,0.00039452,7]
[314120230,1707999052912,-500.0,0.00039452,7]
[314120231,1707999052921,-500.0,0.00039452,7]
[314120232,1707999052930,-500.0,0.00039452,7]
[314120233,1707999052939,-500.0,0.00039452,7]
[314120234,1707999052948,-569.77396092,0.00039452,7]
[314120235,1707999052958,-500.0,0.00039452,7]
[314120236,1707999052967,-500.0,0.00039452,7]
[314120237,1707999052976,-504.70386238,0.00039452,7]
[314120238,1707999052985,-500.0,0.00039452,7]
[314120239,1707999052994,-209.36922202,0.00039452,7]
[314120240,1707999053003,-500.0,0.00039452,7]
[314120241,1707999053012,-4183.33,0.00039452,7]
[314120242,1707999053021,-500.0,0.00039452,7]
[314120243,1707999053030,-500.0,0.00039452,7]
[314120244,1707999053039,-322.53489218,0.00039452,7]
[314120245,1707999053048,-500.0,0.00039452,7]
[314120246,1707999053057,-500.0,0.00039452,7]
[314120247,1707999053067,-530.03824509,0.00039452,7]
[314120248,1707999053076,-500.0,0.00039452,7]
[314120249,1707999053085,-500.0,0.00039452,7]
[314120250,1707999053094,-1880.42,0.00039452,7]
[314120251,1707999053103,-500.0,0.00039452,7]
[314120252,1707999053112,-500.0,0.00039452,7]
[314120253,1707999053190,-500.0,0.00039452,2]
[314120254,1707999053207,-513.0187975,0.00039452,7]
[314120255,1707999053218,-525.36046276,0.00039452,7]
[314120256,1707999053227,-185.98301001,0.00039452,7]
[314120257,1707999053237,-543.87724071,0.00039452,7]
[314120258,1707999053247,-500.0,0.00039452,7]
[314120259,1707999053258,-500.0,0.00039452,7]
[314120260,1707999053267,-500.0,0.00039452,7]
[314120261,1707999053277,-500.0,0.00039452,7]
[314120262,1707999053287,-500.0,0.00039452,7]
[314120263,1707999053296,-500.0,0.00039452,7]
[314120264,1707999053306,-500.0,0.00039452,7]
[314120265,1707999053315,-500.0,0.00039452,7]
[314120266,1707999053325,-500.0,0.00039452,7]
[314120267,1707999053334,-500.0,0.00039452,7]
[314120268,1707999053343,-500.0,0.00039452,7]
[314120269,1707999053352,-507.36,0.00039452,7]
[314120270,1707999053362,-500.0,0.00039452,7]
[314120271,1707999053371,-500.0,0.00039452,7]
[314120272,1707999053383,-500.0,0.00039452,7]
[314120273,1707999053392,-3000.0,0.00039471,2]
[314120274,1707999053402,-151.021518,0.00039498,19]
[314120275,1707999053413,-695.76,0.000395,7]
[314120276,1707999053423,-156.29335066,0.00039517,2]
[314120277,1707999053433,-150.0,0.00039548,2]
[314120278,1707999053444,-10776.47,0.0003959,7]
[314120279,1707999053453,-10776.47,0.0003959,7]
[314120280,1707999053463,-150.0,0.00039599,2]
[314120281,1707999053473,-10000.0,0.000396,15]
[314120282,1707999053482,-50824.75303508,0.000396,4]
[314120283,1707999053499,-2614.7562519,0.000396,4]
[314120284,1707999053525,-379.16855339,0.000396,4]
[314120285,1707999053542,-753.78702579,0.000396,4]
[314120286,1707999053553,-741.27723955,0.000396,4]
[314120287,1707999053564,-420.8888349,0.000396,4]
[314120288,1707999053575,-313.89851893,0.000396,4]
[314120289,1707999053587,-2049.75,0.000396,4]
[314120290,1707999053598,-848.26710872,0.000396,4]
[314120291,1707999053915,-200.65854675,0.00028,2]
[314120292,1707999053933,-150.0,0.00039564,2]
[314120293,1707999053951,-1845.08872628,0.000396,4]
[314120294,1707999054486,-3535.02354632,0.00037011,2]
[314120295,1707999054496,-486.68355842,0.00039452,7]
[314120296,1707999054507,-32848.72470546,0.000396,4]
[314120297,1707999054516,-231.21589079,0.000396,2]
[314120298,1707999054525,-151.0,0.000396,7]
[314120299,1707999054534,-176.104092,0.000396,7]
[314120300,1707999054544,-176.104092,0.000396,7]
[314120301,1707999054553,-151.0,0.000396,7]
[314120302,1707999054562,-150.0,0.00039607,2]
[314120303,1707999054571,-150.0,0.00039609,2]
[314120304,1707999054580,-6880.2,0.0003963,2]
[314120305,1707999054589,-168.0,0.0003969,14]
[314120306,1707999054599,-336.58211584,0.000397,4]
[314120307,1707999054609,-188.79,0.000397,2]
[314120308,1707999054618,-2000.0,0.00039716,2]
[314120309,1707999054630,-1169.26065296,0.00039716,2]